fUSD/lending_fUSD_20260524
["ID","MTS","AMOUNT","RATE_DAILY","PERIOD"]
[422904839,1779600641000,-5000.0,0.00021918,2]
[422904840,1779600641000,-3078.71,0.00021918,2]
[422904838,1779600641000,-151.835296,0.00021918,2]
[422904833,1779600641000,-166.04094743,0.00021658,2]
[422904821,1779600641000,-498.523832,0.000215,2]
[422904836,1779600641000,-1908.10444816,0.000218,2]
[422904845,1779600641000,-166001.7230637,0.00022,4]
[422904844,1779600641000,-1227.43,0.00021999,2]
[422904834,1779600641000,-202.64095844,0.00021718,2]
[422904843,1779600641000,-500.0,0.00021999,2]
[422904831,1779600641000,-151.0,0.000215,2]
[422904835,1779600641000,-2157.14243826,0.00021718,2]
[422904841,1779600641000,-1005.66,0.00021918,2]
[422904848,1779600641000,-300.0,0.00022,2]
[422904846,1779600641000,-814.07097232,0.00022,7]
[422904847,1779600641000,-160.0,0.00022,2]
[422904857,1779600641000,-456.578922,0.00022,2]
[422904858,1779600641000,-456.578922,0.00022,2]
[422904856,1779600641000,-456.578922,0.00022,2]
[422904853,1779600641000,-353.0,0.00022,2]
[422904849,1779600641000,-1908.10444816,0.00022,2]
[422904850,1779600641000,-210.0,0.00022,2]
[422904854,1779600641000,-371.0,0.00022,2]
[422904851,1779600641000,-702.0,0.00022,2]
[422904852,1779600641000,-166.70563724,0.00022,2]
[422904855,1779600641000,-222.0,0.00022,2]
[422904860,1779600641000,-251.64801,0.00022,2]
[422904842,1779600641000,-192.47,0.00021918,2]
[422904832,1779600641000,-1908.10444816,0.000216,2]
[422904805,1779600641000,-500.0,0.0002149,2]
[422904830,1779600641000,-166.175143,0.000215,2]
[422904871,1779600641000,-2236.95670847,0.00022266,2]
[422904800,1779600641000,-290.58497,0.00021415,2]
[422904803,1779600641000,-290.58498,0.00021415,2]
[422904801,1779600641000,-290.58497,0.00021415,2]
[422904802,1779600641000,-290.58497,0.00021415,2]
[422904806,1779600641000,-202.18508596,0.00021498,5]
[422904804,1779600641000,-506.69695703,0.00021416,7]
[422904808,1779600641000,-1227.43,0.00021498,2]
[422904818,1779600641000,-498.523832,0.000215,2]
[422904819,1779600641000,-526.896243,0.000215,2]
[422904810,1779600641000,-225.28713837,0.000215,2]
[422904807,1779600641000,-1358.54243293,0.00021498,5]
[422904812,1779600641000,-240.01891434,0.000215,2]
[422904827,1779600641000,-166.175143,0.000215,2]
[422904814,1779600641000,-151.0,0.000215,2]
[422904813,1779600641000,-151.0,0.000215,2]
[422904811,1779600641000,-624.70204451,0.000215,2]
[422904809,1779600641000,-58371.17374444,0.000215,2]
[422904815,1779600641000,-526.896243,0.000215,2]
[422904816,1779600641000,-526.896243,0.000215,2]
[422904822,1779600641000,-498.523832,0.000215,2]
[422904823,1779600641000,-151.0,0.000215,2]
[422904828,1779600641000,-166.175143,0.000215,2]
[422904826,1779600641000,-151.0,0.000215,2]
[422904824,1779600641000,-151.0,0.000215,2]
[422904820,1779600641000,-498.523832,0.000215,2]
[422904825,1779600641000,-151.0,0.000215,2]
[422904829,1779600641000,-166.175143,0.000215,2]
[422904817,1779600641000,-526.896243,0.000215,2]
[422904870,1779600641000,-5662.02,0.00022222,5]
[422904799,1779600641000,-290.58498,0.00021415,2]
[422904861,1779600641000,-251.64801,0.00022,2]
[422904891,1779600641000,-209878.0,0.000229,2]
[422904895,1779600641000,-702.0,0.00023,2]
[422904904,1779600641000,-5530.0,0.000233,3]
[422904909,1779600641000,-5530.0,0.000238,5]
[422904906,1779600641000,-2405.55389863,0.00023362,2]
[422904905,1779600641000,-2000.0,0.00023333,7]
[422904907,1779600641000,-280.0,0.00023476,2]
[422904911,1779600641000,-690.6599809,0.0002391,2]
[422904908,1779600641000,-500.0,0.00023483,2]
[422904912,1779600641000,-210.0,0.00024,2]
[422904910,1779600641000,-500.0,0.00023878,2]
[422904913,1779600641000,-702.0,0.00024,2]
[422904915,1779600641000,-371.0,0.00024,2]
[422904917,1779600641000,-222.0,0.00024,2]
[422904928,1779600641000,-526.896243,0.00024174,2]
[422904929,1779600641000,-526.896243,0.00024174,2]
[422904924,1779600641000,-151.0,0.00024174,2]
[422904930,1779600641000,-498.523832,0.00024174,2]
[422904922,1779600641000,-813.0,0.00024063,10]
[422904918,1779600641000,-315.0,0.00024,2]
[422904931,1779600641000,-526.896237,0.00024174,2]
[422904916,1779600641000,-1467.01,0.00024,7]
[422904932,1779600641000,-498.523832,0.00024174,2]
[422904920,1779600641000,-308.0,0.00024,2]
[422904935,1779600641000,-151.0,0.00024174,2]
[422904926,1779600641000,-526.896243,0.00024174,2]
[422904933,1779600641000,-498.523832,0.00024174,2]
[422904934,1779600641000,-498.523842,0.00024174,2]
[422904859,1779600641000,-456.578922,0.00022,2]
[422904902,1779600641000,-151.0,0.000231,2]
[422904896,1779600641000,-353.0,0.00023,2]
[422904914,1779600641000,-353.0,0.00024,2]
[422904903,1779600641000,-151.0,0.000231,2]
[422904872,1779600641000,-1467.01,0.000223,7]
[422904900,1779600641000,-222.0,0.00023,2]
[422904862,1779600641000,-251.64801,0.00022,2]
[422904864,1779600641000,-206.70320979,0.00022,3]
[422904865,1779600641000,-527.44351568,0.000221,7]
[422904868,1779600641000,-1908.10444816,0.000222,2]
[422904866,1779600641000,-243.81411031,0.0002211,2]
[422904867,1779600641000,-500.0,0.00022135,2]
[422904863,1779600641000,-251.64801,0.00022,2]
[422904873,1779600641000,-661.0,0.00022353,2]
[422904880,1779600641000,-1908.10444816,0.000225,2]
[422904878,1779600641000,-2900.0,0.000225,15]
[422904879,1779600641000,-36032.34262071,0.000225,2]
[422904876,1779600641000,-1120.53,0.00022466,2]
[422904884,1779600641000,-500.0,0.00022599,2]
[422904869,1779600641000,-1227.43,0.00022221,2]
[422904875,1779600641000,-846.02,0.00022466,2]
[422904898,1779600641000,-371.0,0.00023,2]
[422904885,1779600641000,-3659.52342296,0.000226,2]
[422904892,1779600641000,-670.58624095,0.00022986,2]
[422904888,1779600641000,-500.0,0.00022799,2]
[422904890,1779600641000,-384.67846389,0.0002283,2]
[422904893,1779600641000,-234.49460301,0.00022986,2]
[422904889,1779600641000,-2319.72410669,0.00022814,2]
[422904894,1779600641000,-210.0,0.00023,2]
[422904887,1779600641000,-531.19533287,0.0002271,2]
[422904882,1779600641000,-151.0,0.000225,2]
[422904874,1779600641000,-658.0,0.00022413,7]
[422904877,1779600641000,-368.0,0.00022466,2]
[422904886,1779600641000,-1908.10444816,0.000227,2]
[422904973,1779600642000,-589.0,0.00025637,2]
[422904975,1779600642000,-1487.0,0.00025753,5]
[422904979,1779600642000,-1271.0,0.0002606,2]
[422904976,1779600642000,-980.38,0.00025786,2]
[422904974,1779600642000,-695.39793187,0.00025725,2]
[422904984,1779600642000,-1467.01,0.000261,7]
[422904982,1779600642000,-3635.0,0.0002606,2]
[422904971,1779600642000,-574.45589957,0.00025459,2]
[422904981,1779600642000,-1227.937,0.0002606,2]
[422904972,1779600642000,-1000.0,0.000256,2]
[422904970,1779600642000,-1032.95,0.00025205,5]
[422904980,1779600642000,-150.781,0.0002606,2]
[422904983,1779600642000,-6060.0,0.0002606,2]
[422904977,1779600642000,-14221.69,0.00025786,2]
[422904994,1779600642000,-150.0,0.00027,2]
[422904985,1779600642000,-589.0,0.00026192,3]
[422904992,1779600642000,-384.67846389,0.00026795,2]
[422904991,1779600642000,-589.0,0.00026746,3]
[422904990,1779600642000,-500.0,0.00026679,2]
[422904988,1779600642000,-1487.01,0.00026301,5]
[422904987,1779600642000,-661.0,0.00026296,2]
[422904989,1779600642000,-2000.0,0.00026667,7]
[422904986,1779600642000,-215.34753388,0.000262,7]
[422904993,1779600642000,-1000.0,0.00027,12]
[422904997,1779600642000,-267.0,0.00027231,2]
[422904995,1779600642000,-150.0,0.00027221,2]
[422904999,1779600642000,-168.0,0.00027231,2]
[422904965,1779600642000,-370.0,0.00025,2]
[422904978,1779600642000,-1000.0,0.00026,12]
[422904966,1779600642000,-162.0,0.00025,7]
[422904941,1779600642000,-166.175143,0.00024174,2]
[422904968,1779600642000,-234.0,0.00025,2]
[422904998,1779600642000,-150.0,0.00027231,2]
[422904940,1779600642000,-166.175143,0.00024174,2]
[422904943,1779600642000,-151.0,0.00024174,2]
[422904937,1779600642000,-151.0,0.00024174,2]
[422904938,1779600642000,-226.530182,0.00024174,2]
[422904936,1779600642000,-151.0,0.00024174,2]
[422904944,1779600642000,-980.38,0.00024174,2]
[422904945,1779600642000,-14221.69,0.00024174,2]
[422904939,1779600642000,-166.175143,0.00024174,2]
[422904948,1779600642000,-1487.0,0.00024658,5]
[422904957,1779600642000,-436.70727575,0.00024996,2]
[422904947,1779600642000,-661.0,0.00024324,2]
[422904946,1779600642000,-500.57694666,0.00024187,2]
[422904949,1779600642000,-192.47,0.00024658,15]
[422904952,1779600642000,-151.0,0.00024658,2]
[422904954,1779600642000,-167.27,0.00024658,2]
[422904958,1779600642000,-500.0,0.00024999,2]
[422904956,1779600642000,-2779.0,0.000248,2]
[422904951,1779600642000,-1000.0,0.00024658,2]
[422904950,1779600642000,-189.32,0.00024658,2]
[422904955,1779600642000,-167.26,0.00024658,2]
[422904953,1779600642000,-167.29,0.00024658,2]
[422904959,1779600642000,-1227.43,0.00024999,2]
[422904961,1779600642000,-213959.3791185,0.00025,2]
[422904962,1779600642000,-1000.0,0.00025,12]
[422904963,1779600642000,-215.0,0.00025,2]
[422904964,1779600642000,-717.0,0.00025,2]
[422904960,1779600642000,-162.51900716,0.00025,2]
[422904967,1779600642000,-388.0,0.00025,2]
[422904969,1779600642000,-589.0,0.00025082,2]
[422905001,1779600642000,-150.0,0.000273,10]
[422904942,1779600642000,-166.175151,0.00024174,2]
[422905013,1779600642000,-10252.74,0.000274,14]
[422905033,1779600642000,-589.0,0.00027856,4]
[422905038,1779600642000,-1467.01,0.000279,7]
[422905035,1779600642000,-1227.43,0.00027878,2]
[422905040,1779600642000,-156.11,0.00027985,2]
[422905043,1779600642000,-973.02,0.00028033,30]
[422905042,1779600642000,-194.63575793,0.0002802,2]
[422905044,1779600642000,-1066.16,0.00028053,7]
[422905041,1779600642000,-325.0,0.00028,2]
[422905045,1779600642000,-396.13,0.00028053,7]
[422905050,1779600642000,-200.0,0.0002808,2]
[422905049,1779600642000,-200.0,0.0002808,2]
[422905046,1779600642000,-200.0,0.0002808,2]
[422905048,1779600642000,-200.0,0.0002808,2]
[422905047,1779600642000,-200.0,0.0002808,2]
[422905052,1779600642000,-309.77835106,0.0002808,2]
[422905062,1779600642000,-661.0,0.00028267,2]
[422905051,1779600642000,-200.0,0.0002808,2]
[422905063,1779600642000,-422.02,0.000283,7]
[422905053,1779600642000,-838.0,0.000281,7]
[422905055,1779600642000,-156.11,0.0002813,7]
[422905059,1779600642000,-10252.74,0.000282,14]
[422905056,1779600642000,-406.46,0.00028156,2]
[422905054,1779600642000,-156.14,0.0002813,7]
[422905061,1779600642000,-396.13,0.00028213,2]
[422905060,1779600642000,-1066.16,0.00028213,2]
[422905057,1779600642000,-5001.81104238,0.00028168,2]
[422905058,1779600642000,-973.02,0.00028194,7]
[422905011,1779600642000,-889.42,0.000274,7]
[422905065,1779600642000,-973.02,0.00028355,2]
[422905034,1779600642000,-973.02,0.00027872,2]
[422905036,1779600642000,-1066.16,0.00027892,30]
[422905064,1779600642000,-889.42,0.000283,7]
[422905032,1779600642000,-156.11,0.0002784,30]
[422905030,1779600642000,-2000.0,0.000278,2]
[422905005,1779600642000,-1500.0,0.00027397,2]
[422905003,1779600642000,-2217.7,0.00027397,7]
[422905006,1779600642000,-2000.0,0.00027397,2]
[422905002,1779600642000,-589.0,0.00027301,4]
[422905000,1779600642000,-192.59753173,0.00027262,2]
[422905004,1779600642000,-387.9939,0.00027397,2]
[422905010,1779600642000,-422.02,0.000274,7]
[422905009,1779600642000,-16793.26,0.00027397,10]
[422905007,1779600642000,-1000.0,0.00027397,5]
[422905014,1779600642000,-238.0,0.00027478,2]
[422905017,1779600642000,-165.40532262,0.00027544,7]
[422905016,1779600642000,-150.0,0.00027521,2]
[422905025,1779600642000,-156.12,0.00027695,7]
[422905008,1779600642000,-300.0,0.00027397,2]
[422905021,1779600642000,-396.13,0.0002755,30]
[422905037,1779600642000,-396.13,0.00027892,30]
[422905031,1779600642000,-156.12,0.0002784,30]
[422905039,1779600642000,-156.12,0.00027985,2]
[422905028,1779600642000,-1066.16,0.00027732,2]
[422905023,1779600642000,-1066.16,0.00027572,7]
[422905026,1779600642000,-156.11,0.00027695,7]
[422905029,1779600642000,-396.13,0.00027732,2]
[422905024,1779600642000,-396.13,0.00027572,7]
[422905018,1779600642000,-1066.16,0.0002755,30]
[422905015,1779600642000,-205.0,0.00027478,2]
[422905022,1779600642000,-156.11,0.0002755,2]
[422905019,1779600642000,-973.02,0.0002755,30]
[422905020,1779600642000,-156.12,0.0002755,2]
[422905027,1779600642000,-973.02,0.00027711,7]
[422905133,1779600643000,-396.13,0.00028693,2]
[422905131,1779600643000,-1066.16,0.00028693,2]
[422905124,1779600643000,-973.02,0.00028677,7]
[422905121,1779600643000,-167.33499655,0.00028667,7]
[422905118,1779600643000,-185.34221483,0.00028667,7]
[422905108,1779600643000,-153.67015338,0.00028667,2]
[422905126,1779600643000,-156.0663107,0.00028691,7]
[422905114,1779600643000,-188.7817813,0.00028667,7]
[422905122,1779600643000,-175.93629073,0.00028667,7]
[422905113,1779600643000,-163.43563746,0.00028667,7]
[422905111,1779600643000,-158.07651177,0.00028667,7]
[422905116,1779600643000,-194.82357591,0.00028667,7]
[422905137,1779600643000,-2000.0,0.000288,2]
[422905139,1779600643000,-973.02,0.00028838,2]
[422905147,1779600643000,-589.0,0.00028965,6]
[422905141,1779600643000,-396.18,0.00028855,30]
[422905149,1779600643000,-1376.44,0.00029,2]
[422905129,1779600643000,-159.78984588,0.00028691,7]
[422905145,1779600643000,-150.0,0.00028897,2]
[422905143,1779600643000,-1066.21,0.00028855,30]
[422905151,1779600643000,-500.0,0.00029,2]
[422905154,1779600643000,-5307.9,0.00029,2]
[422905164,1779600643000,-400245.39481697,0.00029,2]
[422905166,1779600643000,-500.0,0.00029,2]
[422905169,1779600643000,-151.0,0.00029,7]
[422905168,1779600643000,-973.07,0.00029,30]
[422905106,1779600643000,-177.33538431,0.00028667,7]
[422905135,1779600643000,-470.21870173,0.00028767,120]
[422905104,1779600643000,-191.55656153,0.00028666,7]
[422905080,1779600643000,-456.578922,0.00028533,7]
[422905100,1779600643000,-165.01275298,0.00028666,7]
[422905067,1779600643000,-396.13,0.00028373,30]
[422905066,1779600643000,-1066.16,0.00028373,30]
[422905069,1779600643000,-5000.0,0.00028375,2]
[422905068,1779600643000,-5000.0,0.00028375,2]
[422905075,1779600643000,-973.02,0.00028516,30]
[422905072,1779600643000,-5000.0,0.00028375,2]
[422905070,1779600643000,-5000.0,0.00028375,2]
[422905073,1779600643000,-589.0,0.00028411,5]
[422905071,1779600643000,-5000.0,0.00028375,2]
[422905074,1779600643000,-721.12765534,0.00028464,2]
[422905077,1779600643000,-1066.16,0.00028533,7]
[422905081,1779600643000,-456.578931,0.00028533,7]
[422905078,1779600643000,-456.578922,0.00028533,7]
[422905076,1779600643000,-2217.7,0.00028516,7]
[422905079,1779600643000,-456.578922,0.00028533,7]
[422905082,1779600643000,-396.13,0.00028533,7]
[422905083,1779600643000,-251.64801,0.00028533,7]
[422905092,1779600643000,-263.55084831,0.00028664,7]
[422905084,1779600643000,-251.64801,0.00028533,7]
[422905094,1779600643000,-197.47373218,0.00028665,7]
[422905085,1779600643000,-251.64801,0.00028533,7]
[422905086,1779600643000,-251.64801,0.00028533,7]
[422905087,1779600643000,-290.49180665,0.00028661,7]
[422905088,1779600643000,-212.05533881,0.00028664,7]
[422905090,1779600643000,-262.16827349,0.00028664,7]
[422905096,1779600643000,-161.98622058,0.00028665,7]
[422905098,1779600643000,-172.19410298,0.00028665,7]
[422905102,1779600643000,-152.7297218,0.00028666,7]
[422905171,1779600643000,-151.0,0.00029,7]
[422905156,1779600643000,-409.66875289,0.00029,2]
[422905173,1779600643000,-1271.0,0.0002906,2]
[422905227,1779600643000,-371.0,0.00029855,30]
[422905230,1779600643000,-154.0,0.00029855,30]
[422905228,1779600643000,-222.0,0.00029855,30]
[422905232,1779600643000,-157.0,0.00029855,30]
[422905240,1779600643000,-266.0,0.00029908,2]
[422905233,1779600643000,-155.0,0.00029855,30]
[422905236,1779600643000,-702.0,0.00029855,30]
[422905237,1779600643000,-158.0,0.00029855,30]
[422905235,1779600643000,-210.0,0.00029855,30]
[422905242,1779600643000,-150.0,0.00029914,2]
[422905238,1779600643000,-300.0,0.00029899,10]
[422905241,1779600643000,-295.0,0.00029914,2]
[422905254,1779600643000,-317.09712093,0.0003,120]
[422905244,1779600643000,-189.69694475,0.00029995,7]
[422905243,1779600643000,-281.0,0.00029914,2]
[422905256,1779600643000,-580.9836133,0.00030001,7]
[422905255,1779600643000,-2000.0,0.0003,7]
[422905246,1779600643000,-1000.0,0.0003,2]
[422905247,1779600643000,-252.84,0.0003,2]
[422905245,1779600643000,-2000.0,0.0003,120]
[422905250,1779600643000,-889.42,0.0003,7]
[422905248,1779600643000,-151.72,0.0003,2]
[422905249,1779600643000,-422.02,0.0003,7]
[422905252,1779600643000,-150.0,0.0003,2]
[422905251,1779600643000,-1000.0,0.0003,12]
[422905253,1779600643000,-150.0,0.0003,2]
[422905160,1779600643000,-153.89,0.00029,2]
[422905225,1779600643000,-155.0,0.00029855,30]
[422905220,1779600643000,-155.0,0.00029855,30]
[422905239,1779600643000,-10252.74,0.000299,14]
[422905223,1779600643000,-153.0,0.00029855,30]
[422905222,1779600643000,-353.0,0.00029855,30]
[422905162,1779600643000,-838.0,0.00029,7]
[422905179,1779600643000,-3635.0,0.0002906,2]
[422905177,1779600643000,-1224.0,0.0002906,2]
[422905175,1779600643000,-150.0,0.0002906,2]
[422905181,1779600643000,-422.02,0.000291,7]
[422905185,1779600643000,-1467.01,0.000291,7]
[422905183,1779600643000,-889.42,0.000291,7]
[422905195,1779600643000,-958.58587002,0.000295,60]
[422905189,1779600643000,-1500.0,0.000293,7]
[422905187,1779600643000,-477.18463989,0.0002927,2]
[422905201,1779600643000,-1161.95376902,0.000295,60]
[422905191,1779600643000,-500.0,0.00029479,2]
[422905197,1779600643000,-1060.14991028,0.000295,60]
[422905158,1779600643000,-10252.74,0.00029,14]
[422905199,1779600643000,-1088.19242874,0.000295,60]
[422905193,1779600643000,-460.59389241,0.000295,60]
[422905213,1779600643000,-188.47,0.00029701,120]
[422905207,1779600643000,-199.66930665,0.000297,2]
[422905211,1779600643000,-208.05360648,0.000297,2]
[422905214,1779600643000,-291.0,0.00029815,2]
[422905210,1779600643000,-208.05360648,0.000297,2]
[422905219,1779600643000,-24781.2009116,0.0002985,7]
[422905217,1779600643000,-267.0,0.00029815,2]
[422905209,1779600643000,-199.66930665,0.000297,2]
[422905208,1779600643000,-199.66930665,0.000297,2]
[422905203,1779600643000,-589.0,0.0002952,6]
[422905205,1779600643000,-2217.7,0.00029636,7]
[422905216,1779600643000,-150.0,0.00029815,2]
[422905297,1779600644000,-159.06572239,0.000307,30]
[422905298,1779600644000,-1467.01,0.000307,7]
[422905293,1779600644000,-150.0,0.00030341,2]
[422905287,1779600644000,-200.0,0.00030137,2]
[422905292,1779600644000,-661.0,0.00030239,2]
[422905289,1779600644000,-881.89,0.00030137,30]
[422905290,1779600644000,-192.47,0.00030137,120]
[422905296,1779600644000,-509.84717082,0.00030668,2]
[422905291,1779600644000,-2973.451816,0.000302,2]
[422905295,1779600644000,-509.84717082,0.00030637,2]
[422905309,1779600644000,-157.0,0.00030855,30]
[422905286,1779600644000,-189.32,0.00030137,2]
[422905308,1779600644000,-154.0,0.00030855,30]
[422905305,1779600644000,-155.0,0.00030855,30]
[422905299,1779600644000,-509.84717082,0.000307,2]
[422905301,1779600644000,-384.67846389,0.0003076,2]
[422905307,1779600644000,-222.0,0.00030855,30]
[422905302,1779600644000,-155.0,0.00030855,30]
[422905300,1779600644000,-2217.7,0.00030755,7]
[422905304,1779600644000,-153.0,0.00030855,30]
[422905306,1779600644000,-371.0,0.00030855,30]
[422905311,1779600644000,-210.0,0.00030855,30]
[422905310,1779600644000,-155.0,0.00030855,30]
[422905312,1779600644000,-702.0,0.00030855,30]
[422905316,1779600644000,-1227.43,0.00030897,2]
[422905313,1779600644000,-158.0,0.00030855,30]
[422905288,1779600644000,-273.79930076,0.00030137,40]
[422905303,1779600644000,-353.0,0.00030855,30]
[422905294,1779600644000,-589.0,0.00030629,7]
[422905257,1779600644000,-424.11067763,0.00030004,7]
[422905284,1779600644000,-800.0,0.0003013,11]
[422905267,1779600644000,-307.34030675,0.00030007,2]
[422905268,1779600644000,-316.15302354,0.00030007,7]
[422905270,1779600644000,-377.56356261,0.00030007,7]
[422905265,1779600644000,-383.11312306,0.00030007,7]
[422905260,1779600644000,-394.94746437,0.00030005,7]
[422905261,1779600644000,-323.97244116,0.00030005,7]
[422905262,1779600644000,-344.38820596,0.00030005,7]
[422905258,1779600644000,-524.33654698,0.00030004,7]
[422905264,1779600644000,-305.4594436,0.00030007,7]
[422905259,1779600644000,-527.10169662,0.00030004,7]
[422905269,1779600644000,-326.87127491,0.00030007,7]
[422905266,1779600644000,-354.67076861,0.00030007,7]
[422905263,1779600644000,-330.02550596,0.00030007,7]
[422905272,1779600644000,-370.68442966,0.00030008,7]
[422905283,1779600644000,-23058.66979406,0.0003013,10]
[422905271,1779600644000,-389.64715181,0.00030007,7]
[422905282,1779600644000,-9704.05738538,0.0003013,10]
[422905274,1779600644000,-351.87258147,0.00030008,7]
[422905319,1779600644000,-187.70218777,0.00030898,7]
[422905281,1779600644000,-1823.76771556,0.0003013,10]
[422905279,1779600644000,-500.0,0.0003013,2]
[422905275,1779600644000,-312.13262141,0.00030032,7]
[422905273,1779600644000,-334.66999309,0.00030008,7]
[422905276,1779600644000,-319.57969175,0.00030032,7]
[422905278,1779600644000,-3634.94724665,0.0003008,7]
[422905280,1779600644000,-25000.0,0.0003013,10]
[422905277,1779600644000,-589.0,0.00030075,7]
[422905285,1779600644000,-415.69633392,0.0003013,11]
[422905320,1779600644000,-184.53560759,0.00030898,7]
[422905363,1779600644000,-215.23595834,0.000309,7]
[422905317,1779600644000,-198.28266062,0.00030898,7]
[422905344,1779600644000,-219.37533672,0.00030899,7]
[422905350,1779600644000,-500.0,0.00030899,120]
[422905347,1779600644000,-239.27539888,0.00030899,7]
[422905353,1779600644000,-495.03825894,0.000309,7]
[422905361,1779600644000,-458.1891654,0.000309,7]
[422905357,1779600644000,-212.67037448,0.000309,7]
[422905362,1779600644000,-247.14075648,0.000309,7]
[422905354,1779600644000,-242.58810723,0.000309,2]
[422905365,1779600644000,-200.43586471,0.000309,7]
[422905355,1779600644000,-206.16312494,0.000309,7]
[422905356,1779600644000,-157.97369419,0.000309,7]
[422905364,1779600644000,-203.83197862,0.000309,7]
[422905358,1779600644000,-240.0344698,0.000309,7]
[422905359,1779600644000,-229.46803214,0.000309,7]
[422905360,1779600644000,-214.00213272,0.000309,7]
[422905367,1779600644000,-229.73872237,0.000309,7]
[422905377,1779600644000,-201.81037796,0.000309,7]
[422905371,1779600644000,-209.56741772,0.000309,7]
[422905375,1779600644000,-232.63081635,0.000309,2]
[422905374,1779600644000,-243.479433,0.000309,7]
[422905366,1779600644000,-249.97723047,0.000309,2]
[422905370,1779600644000,-234.50309708,0.000309,7]
[422905368,1779600644000,-211.33165354,0.000309,7]
[422905369,1779600644000,-153.35034795,0.000309,7]
[422905373,1779600644000,-236.66658689,0.000309,7]
[422905376,1779600644000,-203.90274538,0.000309,7]
[422905318,1779600644000,-184.21308424,0.00030898,7]
[422905345,1779600644000,-205.03444976,0.00030899,7]
[422905343,1779600644000,-516.58230894,0.00030899,7]
[422905372,1779600644000,-258.11134754,0.000309,7]
[422905351,1779600644000,-246.73413882,0.000309,2]
[422905342,1779600644000,-216.69488404,0.00030899,7]
[422905314,1779600644000,-379.3938895,0.00030889,7]
[422905322,1779600644000,-244.42511862,0.00030898,7]
[422905325,1779600644000,-239.5029263,0.00030899,7]
[422905315,1779600644000,-871.47541995,0.00030894,7]
[422905323,1779600644000,-786.50482047,0.00030898,7]
[422905327,1779600644000,-592.42119655,0.00030899,7]
[422905329,1779600644000,-190.75723566,0.00030899,5]
[422905326,1779600644000,-191.33840579,0.00030899,7]
[422905321,1779600644000,-636.16601644,0.00030898,7]
[422905328,1779600644000,-194.22394096,0.00030899,7]
[422905332,1779600644000,-199.43917457,0.00030899,7]
[422905331,1779600644000,-216.96817616,0.00030899,7]
[422905324,1779600644000,-790.65254493,0.00030898,7]
[422905330,1779600644000,-218.1076629,0.00030899,2]
[422905348,1779600644000,-231.12583428,0.00030899,7]
[422905333,1779600644000,-188.34100238,0.00030899,7]
[422905352,1779600644000,-202.07657945,0.000309,7]
[422905349,1779600644000,-248.98766956,0.00030899,5]
[422905341,1779600644000,-485.95866175,0.00030899,7]
[422905340,1779600644000,-293.97046387,0.00030899,7]
[422905346,1779600644000,-157.17269642,0.00030899,7]
[422905337,1779600644000,-222.94877616,0.00030899,7]
[422905335,1779600644000,-203.98856587,0.00030899,7]
[422905334,1779600644000,-236.54822774,0.00030899,7]
[422905339,1779600644000,-220.27637076,0.00030899,7]
[422905336,1779600644000,-205.63052083,0.00030899,7]
[422905338,1779600644000,-233.37285994,0.00030899,7]
[422905390,1779600645000,-556.02664448,0.00030902,7]
[422905389,1779600645000,-509.84717082,0.00030901,2]
[422905387,1779600645000,-566.34534391,0.00030901,7]